bitfinex/quotes_SOLUSD_20241222
["timestamp","ask_amount","ask_price","bid_price","bid_amount"]
[1734857217036,1.6247,184.59,184.5,17.77380647]
[1734857217199,0.46390836,184.58,184.47,17.77380647]
[1734857217828,0.46390836,184.58,184.46,17.77380647]
[1734857218513,0.46390836,184.58,184.45,17.77380647]
[1734857218715,20.0,184.54,184.42,17.77380647]
[1734857218911,0.46390836,184.53,184.43,17.77380647]
[1734857219101,0.46390836,184.53,184.44,17.77380647]
[1734857219831,0.46390836,184.53,184.42,17.77380647]
[1734857220312,0.46390836,184.53,184.43,23.776884]
[1734857220721,0.46390836,184.53,184.43,41.55069047]
[1734857221050,0.46390836,184.53,184.43,23.776884]
[1734857222208,0.46390836,184.53,184.41,17.77380647]
[1734857222409,6.1458,184.51,184.39,17.77380647]
[1734857222623,20.0,184.48,184.37,17.77380647]
[1734857222823,0.46390836,184.47,184.39,17.77380647]
[1734857223121,0.46390836,184.47,184.33,0.81323809]
[1734857223122,0.46390836,184.47,184.4,17.77380647]
[1734857224044,0.46390836,184.5,184.44,17.77380647]
[1734857224240,6.1458,184.51,184.45,17.77380647]
[1734857224434,6.1458,184.51,184.46,17.77380647]
[1734857225010,6.1458,184.51,184.42,0.12549]
[1734857225011,6.1458,184.51,184.45,17.77380647]
[1734857225329,0.46390836,184.5,184.42,17.77380647]
[1734857225533,0.46390836,184.5,184.43,23.776884]
[1734857226037,6.1458,184.51,184.44,17.77380647]
[1734857227032,6.1458,184.56,184.48,41.55069047]
[1734857227213,6.1458,184.6,184.52,17.77380647]
[1734857227413,2.08860836,184.62,184.54,17.77380647]
[1734857227629,2.08860836,184.62,184.55,23.776884]
[1734857228059,1.6247,184.62,184.55,41.55069047]
[1734857228268,1.6247,184.62,184.55,23.776884]
[1734857229250,0.46390836,184.61,184.55,17.77380647]
[1734857229538,0.46390836,184.63,184.55,17.77380647]
[1734857229731,6.60970836,184.64,184.56,17.77380647]
[1734857229931,0.46390836,184.62,184.57,23.776884]
[1734857230160,0.46390836,184.63,184.57,23.776884]
[1734857230328,6.60970836,184.64,184.56,23.776884]
[1734857230532,6.60970836,184.64,184.56,41.55069047]
[1734857230728,6.1458,184.64,184.58,41.55069047]
[1734857230965,6.1458,184.64,184.58,17.77380647]
[1734857231228,6.1458,184.64,184.59,23.776884]
[1734857231465,0.46390836,184.63,184.55,23.776884]
[1734857231967,0.46390836,184.63,184.55,41.55069047]
[1734857232171,0.46390836,184.63,184.54,17.77380647]
[1734857232332,20.0,184.61,184.52,17.77380647]
[1734857232529,0.46390836,184.6,184.52,17.77380647]
[1734857232757,0.46390836,184.63,184.54,17.77380647]
[1734857233069,0.46390836,184.63,184.52,17.77380647]
[1734857233070,20.0,184.61,184.52,17.77380647]
[1734857233233,0.46390836,184.6,184.52,17.77380647]
[1734857233438,0.46390836,184.63,184.55,17.77380647]
[1734857233868,6.1458,184.64,184.57,17.77380647]
[1734857234047,0.46390836,184.63,184.55,17.77380647]
[1734857234780,0.46390836,184.63,184.56,23.776884]
[1734857235068,0.46390836,184.63,184.54,17.77380647]
[1734857235363,0.46390836,184.63,184.51,0.7556917]
[1734857235364,0.46390836,184.63,184.53,17.77380647]
[1734857236376,0.46390836,184.63,184.54,17.77380647]
[1734857236555,20.0,184.61,184.53,17.77380647]
[1734857236850,0.46390836,184.6,184.54,23.776884]
[1734857237247,20.0,184.61,184.54,41.55069047]
[1734857237553,0.46390836,184.6,184.51,17.77380647]
[1734857237749,0.46390836,184.6,184.52,17.77380647]
[1734857237975,0.46390836,184.6,184.53,17.77380647]
[1734857238580,0.46390836,184.6,184.52,17.77380647]
[1734857238871,0.46390836,184.6,184.53,23.776884]
[1734857239077,0.46390836,184.6,184.52,17.77380647]
[1734857239572,0.46390836,184.6,184.49,17.77380647]
[1734857239780,0.46390836,184.6,184.46,13.553]
[1734857239781,1.6257,184.59,184.46,17.77380647]
[1734857239966,0.46390836,184.58,184.46,17.77380647]
[1734857240151,0.46390836,184.58,184.42,20.67786469]
[1734857240353,6.4966,184.55,184.44,17.77380647]
[1734857240560,0.46390836,184.54,184.45,17.77380647]
[1734857241254,6.4966,184.55,184.48,17.77380647]
[1734857241466,1.6257,184.59,184.45,0.81300521]
[1734857241467,8.1223,184.59,184.49,17.77380647]
[1734857241662,0.46390836,184.58,184.49,17.77380647]
[1734857241887,0.46390836,184.58,184.51,17.77380647]
[1734857242249,0.46390836,184.58,184.52,23.776884]
[1734857242746,8.58620836,184.64,184.53,17.77380647]
[1734857243671,8.58620836,184.64,184.55,41.55069047]
[1734857245276,8.58620836,184.64,184.55,23.776884]
[1734857245484,20.0,184.61,184.52,23.776884]
[1734857245777,0.46390836,184.6,184.51,17.77380647]
[1734857246452,0.46390836,184.6,184.5,17.77380647]
[1734857247059,0.46390836,184.6,184.47,17.77380647]
[1734857247593,4.52680836,184.6,184.47,17.77380647]
[1734857248185,4.52680836,184.6,184.48,17.77380647]
[1734857248387,4.52680836,184.6,184.46,0.12549]
[1734857248388,4.52680836,184.6,184.49,17.77380647]
[1734857248551,0.46390836,184.6,184.5,23.776884]
[1734857249258,20.46390836,184.6,184.5,23.776884]
[1734857249955,0.46390836,184.6,184.51,17.77380647]
[1734857250896,0.46390836,184.6,184.52,41.55069047]
[1734857251185,0.46390836,184.63,184.52,41.55069047]
[1734857251654,0.46390836,184.63,184.52,23.776884]
[1734857252185,20.0,184.61,184.52,23.776884]
[1734857252481,0.46390836,184.6,184.46,14.49104114]
[1734857252646,0.46390836,184.6,184.5,23.776884]
[1734857256476,0.46390836,184.6,184.5,41.55069047]
[1734857256689,0.46390836,184.6,184.52,17.77380647]
[1734857257014,12.1844,184.64,184.5,41.55069047]
[1734857257015,0.46390836,184.63,184.5,41.55069047]
[1734857257525,0.46390836,184.63,184.51,17.77380647]
[1734857257805,0.46390836,184.63,184.52,23.776884]
[1734857258098,20.0,184.61,184.52,23.776884]
[1734857258292,0.46390836,184.6,184.52,23.776884]
[1734857260108,0.46390836,184.6,184.52,41.55069047]
[1734857260463,0.46390836,184.6,184.52,23.776884]
[1734857260668,0.46390836,184.6,184.51,23.776884]
[1734857262282,0.46390836,184.6,184.51,41.55069047]
[1734857262480,20.0,184.61,184.53,41.55069047]
[1734857262663,20.0,184.61,184.53,17.77380647]
[1734857262873,20.0,184.61,184.54,23.776884]
[1734857263193,0.46390836,184.6,184.54,23.776884]
[1734857263400,0.46390836,184.63,184.54,41.55069047]
[1734857263562,8.58620836,184.64,184.57,23.776884]
[1734857264192,0.46390836,184.63,184.57,23.776884]
[1734857265285,8.1223,184.64,184.57,41.55069047]
[1734857265472,8.1223,184.64,184.58,17.77380647]
[1734857265675,8.37900836,184.69,184.59,23.776884]
[1734857265887,8.37900836,184.69,184.57,17.77380647]
[1734857266065,8.37900836,184.69,184.56,17.77380647]
[1734857266268,8.37900836,184.69,184.57,23.776884]
[1734857267179,20.0,184.66,184.57,23.776884]
[1734857267367,0.46390836,184.65,184.57,23.776884]
[1734857269428,0.46390836,184.65,184.54,31.32090647]
[1734857269579,0.46390836,184.65,184.56,23.776884]
[1734857269781,0.46390836,184.65,184.55,23.776884]
[1734857270699,0.46390836,184.65,184.52,17.77380647]
[1734857270907,6.2594,184.63,184.51,17.77380647]
[1734857271193,20.0,184.6,184.51,17.77380647]
[1734857271397,0.46390836,184.59,184.51,17.77380647]
[1734857271764,0.46390836,184.59,184.52,17.77380647]
[1734857271991,20.0,184.6,184.52,17.77380647]
[1734857272178,0.46390836,184.62,184.54,23.776884]
[1734857272664,0.46390836,184.62,184.53,23.776884]
[1734857275990,0.46390836,184.62,184.52,17.77380647]
[1734857276204,20.0,184.6,184.51,41.55069047]
[1734857276404,0.46390836,184.59,184.51,41.55069047]
[1734857277123,20.0,184.6,184.53,17.77380647]
[1734857277419,0.46390836,184.59,184.53,17.77380647]
[1734857277597,0.46390836,184.59,184.52,17.77380647]
[1734857278197,0.46390836,184.62,184.54,23.776884]
[1734857282514,16.93127106,184.67,184.6,17.77380647]
[1734857282691,16.93127106,184.67,184.61,23.776884]
[1734857282890,16.93127106,184.67,184.61,41.55069047]
[1734857283085,0.46390836,184.65,184.59,17.77380647]
[1734857283303,0.46390836,184.65,184.59,23.776884]
[1734857283501,0.46390836,184.65,184.56,17.77380647]
[1734857283706,0.46390836,184.65,184.54,21.3161]
[1734857283707,0.46390836,184.65,184.55,23.776884]
[1734857284107,0.46390836,184.65,184.51,14.36174586]
[1734857284288,0.46390836,184.66,184.53,17.77380647]
[1734857284602,20.0,184.65,184.53,17.77380647]
[1734857284899,0.46390836,184.64,184.53,17.77380647]
[1734857285518,0.46390836,184.64,184.44,51.87048225]
[1734857285519,20.0,184.6,184.48,13.5515]
[1734857285720,0.46390836,184.59,184.5,17.77380647]
[1734857285909,0.46390836,184.59,184.51,17.77380647]
[1734857286219,0.46390836,184.59,184.52,17.77380647]
[1734857288730,0.46390836,184.59,184.52,23.776884]
[1734857292206,0.46390836,184.59,184.5,11.11235026]
[1734857292628,20.0,184.6,184.49,34.88923426]
[1734857292829,0.46390836,184.59,184.49,34.88923426]
[1734857293137,0.46390836,184.59,184.5,11.11235026]
[1734857294205,20.0,184.6,184.52,11.11235026]
[1734857294422,0.46390836,184.59,184.52,11.11235026]
[1734857295122,20.0,184.6,184.54,11.11235026]
[1734857295623,0.46390836,184.62,184.54,11.11235026]
[1734857296113,7.825,184.63,184.55,41.54983382]
[1734857296933,0.46390836,184.62,184.55,41.54983382]
[1734857297128,7.825,184.63,184.55,41.54983382]
[1734857298106,8.46563553,184.68,184.59,17.77294982]
[1734857298107,20.0,184.65,184.59,17.77294982]
[1734857298505,0.46390836,184.67,184.6,17.77294982]
[1734857298717,16.17443553,184.68,184.6,17.77294982]
[1734857298924,16.17443553,184.68,184.61,17.77294982]
[1734857299236,0.46390836,184.67,184.61,23.776884]
[1734857299613,0.46390836,184.67,184.6,23.776884]
[1734857300022,7.7088,184.68,184.6,23.776884]
[1734857300730,0.46390836,184.67,184.6,23.776884]
[1734857301525,7.7088,184.68,184.6,23.776884]
[1734857303907,1.15504506,184.7,184.62,41.54983382]
[1734857304142,0.6911367,184.7,184.63,17.77294982]
[1734857304321,0.6911367,184.7,184.64,23.776884]
[1734857310847,20.6911367,184.7,184.61,0.81217396]
[1734857311143,20.6911367,184.7,184.57,17.77294982]
[1734857311144,20.46390836,184.69,184.57,17.77294982]
[1734857311442,20.46390836,184.69,184.58,17.77294982]
[1734857311627,20.46390836,184.69,184.57,17.77294982]
[1734857312117,20.46390836,184.69,184.57,18.58533692]
[1734857312316,20.46390836,184.69,184.58,23.776884]
[1734857312720,0.46390836,184.69,184.55,17.77294982]
[1734857312921,1.5378,184.68,184.55,17.77294982]
[1734857313143,0.46390836,184.67,184.55,17.77294982]
[1734857313537,0.46390836,184.67,184.57,17.77294982]
[1734857314343,0.46390836,184.67,184.58,23.776884]
[1734857314530,0.46390836,184.67,184.56,17.77294982]
[1734857314736,20.0,184.63,184.53,17.77294982]
[1734857315037,0.46390836,184.62,184.52,0.12549]
[1734857315233,20.0,184.63,184.54,17.77294982]
[1734857315418,20.0,184.63,184.56,17.77294982]
[1734857315746,0.46390836,184.62,184.55,17.77294982]
[1734857315951,20.0,184.63,184.56,23.776884]
[1734857316133,0.46390836,184.62,184.54,11.1079882]
[1734857316333,0.46390836,184.62,184.53,11.92046701]
[1734857316536,0.46390836,184.62,184.51,11.1079882]
[1734857317252,0.46390836,184.62,184.49,11.1079882]
[1734857317253,21.6136,184.61,184.49,11.1079882]
[1734857317544,20.0,184.59,184.49,11.1079882]
[1734857317749,20.0,184.59,184.46,14.36560088]
[1734857317750,0.46390836,184.58,184.5,11.1079882]
[1734857318053,0.46390836,184.58,184.49,31.1079882]
[1734857318347,0.46390836,184.58,184.5,11.1079882]
[1734857318753,0.46390836,184.58,184.51,23.776884]
[1734857320352,2.07750836,184.61,184.53,34.8848722]
[1734857320925,2.07750836,184.61,184.51,0.81276477]
[1734857320926,1.6136,184.61,184.55,34.8848722]
[1734857322859,0.46390836,184.65,184.57,11.1079882]
[1734857323029,0.46390836,184.65,184.58,34.8848722]
[1734857323227,7.7846,184.66,184.59,11.92042088]
[1734857323541,0.46390836,184.69,184.62,23.776884]
[1734857324236,0.46390836,184.69,184.61,23.776884]
[1734857324444,0.46390836,184.69,184.6,23.776884]
[1734857325340,0.46390836,184.69,184.6,34.8848722]
[1734857325740,2.3047367,184.7,184.62,34.8848722]
[1734857326141,2.3047367,184.7,184.63,17.75901718]
[1734857326353,2.3047367,184.7,184.64,23.776884]
[1734857326548,2.76864506,184.7,184.64,23.776884]
[1734857326732,2.76864506,184.7,184.63,23.776884]
[1734857327337,2.76864506,184.7,184.62,23.776884]
[1734857328062,2.76864506,184.7,184.62,41.53590118]
[1734857328556,2.76864506,184.7,184.61,17.75901718]
[1734857328726,2.76864506,184.7,184.58,37.75901718]
[1734857329252,2.76864506,184.7,184.6,17.75901718]
[1734857329423,2.76864506,184.7,184.59,17.75901718]
[1734857330254,2.76864506,184.7,184.6,23.776884]
[1734857333664,20.0,184.68,184.56,17.75901718]
[1734857333849,0.46390836,184.67,184.57,17.75901718]
[1734857334065,0.46390836,184.67,184.58,17.75901718]
[1734857334238,2.3047367,184.7,184.55,14.35889182]
[1734857334239,2.76864506,184.7,184.6,17.75901718]
[1734857334842,2.76864506,184.7,184.61,23.776884]
[1734857335961,20.0,184.68,184.58,17.75901718]
[1734857336157,20.0,184.68,184.55,13.5464]
[1734857336158,0.46390836,184.67,184.56,41.53590118]
[1734857336362,0.46390836,184.67,184.56,17.75901718]
[1734857336560,20.46390836,184.67,184.55,17.75901718]
[1734857337070,7.6321,184.66,184.52,17.75901718]
[1734857337368,20.0,184.63,184.52,17.75901718]
[1734857337571,6.0854,184.6,184.5,17.75901718]
[1734857337859,20.0,184.57,184.48,17.75901718]
[1734857338067,0.46390836,184.56,184.48,17.75901718]
[1734857338240,20.0,184.57,184.49,17.75901718]
[1734857338439,0.46390836,184.56,184.49,17.75901718]
[1734857339247,0.46390836,184.56,184.5,23.776884]
[1734857339445,0.46390836,184.56,184.47,17.75901718]
[1734857340566,1.5467,184.55,184.44,17.75901718]
[1734857340741,20.0,184.51,184.42,17.75901718]
[1734857341066,0.46390836,184.5,184.42,17.75901718]
[1734857341667,6.0854,184.54,184.48,17.75901718]
[1734857341973,6.0854,184.54,184.49,17.75901718]
[1734857342938,0.46390836,184.58,184.5,41.53590118]
[1734857343151,6.0854,184.59,184.53,17.75901718]
[1734857343537,6.0854,184.59,184.54,23.776884]
[1734857343753,6.0854,184.59,184.52,17.75901718]
[1734857343754,0.46390836,184.58,184.52,17.75901718]
[1734857343958,0.46390836,184.58,184.51,41.53590118]
[1734857344251,0.46390836,184.58,184.51,23.776884]
[1734857344481,0.46390836,184.58,184.51,41.53590118]
[1734857344833,0.46390836,184.58,184.51,23.776884]
[1734857345765,6.0854,184.59,184.51,41.53590118]
[1734857345943,0.46390836,184.58,184.51,41.53590118]
[1734857346146,6.0854,184.59,184.51,41.53590118]
[1734857346936,6.0854,184.59,184.53,23.776884]
[1734857347141,1.5467,184.62,184.53,41.53590118]
[1734857347446,0.46390836,184.61,184.53,23.776884]
[1734857347950,2.01060836,184.62,184.53,41.53590118]
[1734857348150,2.01060836,184.62,184.55,23.776884]
[1734857349479,2.01060836,184.62,184.52,17.75901718]
[1734857349662,2.01060836,184.62,184.52,23.776884]
[1734857350183,2.01060836,184.62,184.52,41.53590118]
[1734857350494,2.01060836,184.62,184.52,23.776884]
[1734857350648,2.01060836,184.62,184.53,17.75901718]
[1734857350849,1.5467,184.62,184.54,41.53590118]
[1734857352089,1.5467,184.62,184.54,34.88505463]
[1734857352289,1.5467,184.62,184.55,11.10817063]
[1734857352583,1.5467,184.62,184.56,34.88505463]
[1734857352782,1.5467,184.62,184.56,23.776884]
[1734857352967,2.01060836,184.62,184.55,23.776884]
[1734857353170,2.01060836,184.62,184.54,23.776884]
[1734857353479,2.01060836,184.62,184.51,11.10817063]
[1734857353669,2.01060836,184.62,184.52,23.776884]
[1734857353991,20.0,184.6,184.52,23.776884]
[1734857354284,0.46390836,184.59,184.52,23.776884]
[1734857354492,20.0,184.6,184.52,23.776884]
[1734857354851,0.46390836,184.59,184.51,11.10817063]
[1734857355251,20.0,184.6,184.46,19.9354]
[1734857355252,20.0,184.6,184.52,11.92089311]
[1734857355482,0.46390836,184.59,184.51,11.10817063]
[1734857356177,0.46390836,184.59,184.52,23.776884]
[1734857356498,0.46390836,184.59,184.49,31.10817063]
[1734857356673,20.46390836,184.59,184.47,11.10817063]
[1734857356866,20.46390836,184.59,184.48,11.10817063]
[1734857357682,20.46390836,184.59,184.51,11.10817063]
[1734857357886,0.46390836,184.59,184.51,11.10817063]
[1734857358192,0.46390836,184.59,184.5,41.55775829]
[1734857358392,0.46390836,184.59,184.5,23.776884]
[1734857359102,0.46390836,184.59,184.5,41.55775829]
[1734857359294,0.46390836,184.59,184.5,42.3704918]
[1734857360203,0.46390836,184.59,184.5,41.55775829]
[1734857360416,20.0,184.6,184.52,41.55775829]
[1734857361208,20.0,184.6,184.51,0.81273491]
[1734857361390,20.46390836,184.59,184.49,23.776884]
[1734857361596,20.46390836,184.59,184.48,17.78087429]
[1734857361892,20.46390836,184.59,184.47,17.78087429]
[1734857362085,6.2624,184.58,184.45,17.78087429]
[1734857362281,1.5283,184.54,184.44,17.78087429]
[1734857362482,0.46390836,184.53,184.44,17.78087429]
[1734857362782,0.46390836,184.53,184.43,17.78087429]
[1734857362977,26.2624,184.52,184.39,0.81307115]
[1734857363190,26.2624,184.52,184.4,17.78087429]
[1734857363191,0.46390836,184.51,184.4,17.78087429]
[1734857363399,20.46390836,184.51,184.4,17.78087429]
[1734857363584,20.0,184.49,184.39,17.78087429]
[1734857363893,1.5283,184.47,184.37,17.78087429]
[1734857364078,0.46390836,184.46,184.37,17.78087429]
[1734857364477,0.46390836,184.46,184.36,17.78087429]
[1734857364884,0.46390836,184.46,184.38,17.78087429]
[1734857365318,0.46390836,184.46,184.37,17.78087429]
[1734857365819,0.46390836,184.46,184.38,23.776884]
[1734857366707,0.46390836,184.46,184.35,17.78087429]
[1734857366888,0.46390836,184.46,184.34,17.78087429]
[1734857367200,6.2624,184.45,184.34,17.78087429]
[1734857367400,0.46390836,184.44,184.34,17.78087429]
[1734857367611,20.0,184.42,184.32,17.78087429]
[1734857367796,0.46390836,184.41,184.3,17.78087429]
[1734857368199,0.46390836,184.41,184.32,17.78087429]
[1734857368400,0.46390836,184.41,184.31,17.78087429]
[1734857368605,0.46390836,184.41,184.32,17.78087429]
[1734857368804,0.46390836,184.41,184.31,17.78087429]
[1734857369217,0.46390836,184.41,184.32,17.78087429]
[1734857369421,0.46390836,184.41,184.31,17.78087429]
[1734857369714,0.46390836,184.41,184.32,17.78087429]
[1734857370222,0.46390836,184.44,184.36,17.78087429]
[1734857371034,6.2624,184.45,184.37,41.55775829]
[1734857371198,1.5283,184.47,184.4,17.78087429]
[1734857371403,1.5283,184.47,184.38,17.78087429]
[1734857371404,0.46390836,184.46,184.38,17.78087429]
[1734857371724,0.46390836,184.46,184.39,23.776884]
[1734857371923,1.5283,184.47,184.39,23.776884]
[1734857372111,1.5283,184.47,184.4,23.776884]
[1734857373006,1.5283,184.47,184.4,41.55775829]
[1734857373699,1.5283,184.47,184.4,23.776884]
[1734857375504,0.46390836,184.48,184.4,23.776884]
[1734857377836,6.72630836,184.49,184.4,41.55775829]
[1734857378003,6.2624,184.49,184.42,23.776884]
[1734857378744,6.2624,184.49,184.41,23.776884]
[1734857379100,1.5283,184.51,184.42,17.78087429]
[1734857379305,1.5283,184.51,184.43,24.58991392]
[1734857379540,1.5283,184.51,184.43,42.37078821]
[1734857380310,6.4672,184.53,184.45,41.55775829]
[1734857380504,6.4672,184.53,184.45,42.37063773]
[1734857380837,1.5197,184.55,184.47,23.776884]
[1734857381034,1.5197,184.55,184.48,17.78087429]
[1734857381241,1.5197,184.55,184.49,23.776884]
[1734857381940,1.5197,184.55,184.48,23.776884]
[1734857383013,6.4672,184.58,184.49,41.68324829]
[1734857383333,6.4672,184.58,184.5,17.78087429]
[1734857383503,6.4672,184.62,184.52,41.55775829]
[1734857383707,6.4672,184.62,184.54,23.776884]
[1734857384018,6.93110836,184.62,184.54,23.776884]
[1734857384205,6.4672,184.62,184.54,41.55775829]
[1734857384412,6.4672,184.66,184.56,41.55775829]
[1734857384644,6.4672,184.66,184.58,23.776884]
[1734857385439,6.4672,184.66,184.59,0.81235306]
[1734857385615,1.5197,184.68,184.6,23.776884]
[1734857385841,0.46390836,184.67,184.6,23.776884]
[1734857386150,20.46390836,184.67,184.6,23.776884]
[1734857386453,20.0,184.67,184.6,23.776884]
[1734857386749,0.46390836,184.66,184.57,0.81236853]
[1734857386927,20.0,184.67,184.58,23.776884]
[1734857387119,0.46390836,184.66,184.57,23.776884]
[1734857387748,20.0,184.67,184.58,0.81240431]
[1734857388053,20.0,184.67,184.59,23.776884]
[1734857388233,20.0,184.67,184.61,23.776884]
[1734857388621,7.1583367,184.7,184.62,0.81226596]
[1734857388827,7.1583367,184.7,184.63,23.776884]
[1734857389836,0.46390836,184.69,184.59,31.32427429]
[1734857390020,0.46390836,184.69,184.6,23.776884]
[1734857390221,7.1583367,184.7,184.6,24.58916517]
[1734857390735,0.46390836,184.69,184.6,24.58916517]
[1734857390936,7.1583367,184.7,184.6,24.58916517]
[1734857391130,0.46390836,184.69,184.6,42.37003946]
[1734857391444,0.46390836,184.69,184.59,23.776884]
[1734857392254,0.46390836,184.69,184.58,17.78087429]
[1734857392456,20.0,184.67,184.53,23.90257429]
[1734857392628,0.46390836,184.66,184.54,18.59341544]
[1734857392829,0.46390836,184.66,184.55,17.90636429]
[1734857393740,1.5197,184.65,184.52,17.78087429]
[1734857393943,20.0,184.63,184.51,33.6678355]
[1734857394137,0.46390836,184.62,184.51,33.6678355]
[1734857394653,6.4672,184.61,184.49,17.78087429]
[1734857394867,0.46390836,184.6,184.49,17.78087429]
[1734857395159,0.46390836,184.6,184.5,17.78087429]
[1734857396339,0.46390836,184.6,184.51,23.776884]
[1734857396651,6.4672,184.61,184.52,17.78087429]
[1734857396860,6.4672,184.61,184.53,23.776884]
[1734857397320,6.4672,184.61,184.53,41.55775829]
[1734857398038,6.4672,184.61,184.53,23.776884]
[1734857398243,6.4672,184.61,184.52,41.55775829]
[1734857398445,6.4672,184.61,184.53,17.78087429]
[1734857398742,0.46390836,184.6,184.54,23.776884]
[1734857398952,0.46390836,184.6,184.51,17.78087429]
[1734857399134,0.46390836,184.6,184.52,23.776884]
[1734857399858,1.6378,184.57,184.46,17.78087429]
[1734857400064,0.46390836,184.56,184.46,17.78087429]
[1734857400651,0.46390836,184.56,184.47,17.78087429]
[1734857400825,0.46390836,184.56,184.48,17.78087429]
[1734857401033,2.10170836,184.57,184.49,17.78087429]
[1734857401258,1.6378,184.57,184.49,17.78087429]
[1734857401758,1.6378,184.57,184.5,23.776884]
[1734857402256,1.6378,184.57,184.5,41.55775829]
[1734857402428,1.6378,184.57,184.5,23.776884]
[1734857403034,1.6378,184.57,184.5,41.55775829]
[1734857403232,8.105,184.61,184.53,17.78087429]
[1734857403437,8.105,184.61,184.55,23.776884]
[1734857403659,8.105,184.61,184.55,41.55775829]
[1734857403842,8.105,184.61,184.55,17.78087429]
[1734857404044,0.46390836,184.6,184.54,23.776884]
[1734857404359,0.46390836,184.6,184.52,23.776884]
[1734857404923,0.46390836,184.6,184.49,23.776884]
[1734857405359,20.0,184.58,184.5,23.776884]
[1734857405563,0.46390836,184.57,184.47,17.78087429]
[1734857405863,0.46390836,184.57,184.46,17.78087429]
[1734857406065,0.46390836,184.57,184.47,17.78087429]
[1734857406266,0.46390836,184.57,184.45,17.78087429]
[1734857406267,20.46390836,184.57,184.45,17.78087429]
[1734857407371,20.0,184.52,184.45,23.776884]
[1734857407572,0.46390836,184.51,184.44,23.776884]
[1734857408065,0.46390836,184.51,184.43,52.69385556]
[1734857408241,20.0,184.52,184.43,52.69385556]
[1734857408442,20.0,184.52,184.45,52.69385556]
[1734857408658,0.46390836,184.54,184.46,28.91697156]
[1734857408970,6.6047,184.55,184.47,52.69385556]
[1734857410668,6.6047,184.55,184.49,52.69385556]
[1734857411035,6.6047,184.55,184.49,23.776884]
[1734857411235,6.6047,184.55,184.48,23.776884]
[1734857411467,0.46390836,184.54,184.45,28.91697156]
[1734857411639,0.46390836,184.54,184.43,0.81279165]
[1734857411640,0.46390836,184.54,184.44,52.69385556]
[1734857413372,0.46390836,184.54,184.45,28.91697156]
[1734857413735,0.46390836,184.54,184.45,23.776884]
[1734857415877,7.06860836,184.55,184.47,52.69385556]
[1734857416284,7.06860836,184.55,184.47,28.91697156]
[1734857416592,7.06860836,184.55,184.46,28.91697156]
[1734857416760,7.06860836,184.55,184.47,23.776884]
[1734857417184,6.6047,184.55,184.5,28.91697156]
[1734857417354,1.6378,184.56,184.51,23.776884]
[1734857417683,1.6378,184.56,184.51,52.69385556]
[1734857417977,1.6028,184.62,184.55,28.91697156]
[1734857418191,1.6028,184.62,184.56,23.776884]
[1734857420981,1.6028,184.62,184.56,53.50634581]
[1734857421277,6.4536,184.64,184.58,23.776884]
[1734857421476,6.4536,184.64,184.58,28.91697156]
[1734857421664,6.4536,184.64,184.57,23.776884]
[1734857422167,6.4536,184.64,184.57,52.69385556]
[1734857423082,5.02444363,184.64,184.57,52.69385556]
[1734857423668,21.6028,184.67,184.59,23.776884]
[1734857423870,1.6028,184.67,184.61,52.69385556]
[1734857424779,0.6911367,184.7,184.63,23.776884]
[1734857426275,0.6911367,184.7,184.62,23.776884]
[1734857426902,0.6911367,184.7,184.58,0.81217603]
[1734857426903,20.0,184.68,184.59,23.776884]
[1734857427061,0.46390836,184.67,184.59,23.776884]
[1734857427677,0.46390836,184.67,184.58,23.776884]
[1734857427879,0.46390836,184.67,184.58,52.69385556]
[1734857428099,0.46390836,184.67,184.58,41.54353464]
[1734857430297,1.15504506,184.7,184.61,41.54353464]
[1734857430801,1.15504506,184.7,184.6,41.54353464]
[1734857431183,1.15504506,184.7,184.6,23.776884]
[1734857431794,20.0,184.68,184.57,17.76665064]
[1734857431999,0.46390836,184.67,184.57,23.776884]
[1734857432197,1.6028,184.66,184.57,23.776884]
[1734857432492,1.6028,184.66,184.57,41.54353464]
[1734857432693,0.46390836,184.65,184.57,41.54353464]
[1734857432898,1.6028,184.66,184.57,41.54353464]
[1734857433079,0.46390836,184.65,184.57,41.54353464]
[1734857433402,1.6028,184.66,184.57,41.54353464]
[1734857434800,0.46390836,184.65,184.57,41.54353464]
[1734857435395,1.6028,184.66,184.57,41.54353464]
[1734857435586,0.46390836,184.65,184.57,41.54353464]
[1734857436203,1.6028,184.66,184.57,41.54353464]
[1734857436374,1.6028,184.66,184.59,23.776884]
[1734857437396,1.6028,184.66,184.61,41.54353464]
[1734857437595,1.6028,184.66,184.63,23.776884]
[1734857437903,2.3562367,184.7,184.63,23.776884]
[1734857438103,2.82014506,184.7,184.63,23.776884]